[Event "*** Titled Tuesday Blitz"]
[Site "Chess.com"]
[Date "2020.04.07"]
[Round "1"]
[White "VinzentSpitzl"]
[Black "Misi_95"]
[Result "0-1"]
[WhiteElo "2359"]
[BlackElo "2703"]
[TimeControl "180+1"]
[EndTime "13:07:00 PDT"]
[Termination "Misi_95 won by checkmate"]

1. e4 {[%clk 0:02:57.6]} 1... c5 {[%clk 0:02:59.2]} 2. Nf3 {[%clk 0:02:57.4]}
2... Nc6 {[%clk 0:02:58.8]} 3. d4 {[%clk 0:02:57.5]} 3... cxd4 {[%clk
0:02:59.7]} 4. Nxd4 {[%clk 0:02:58.4]} 4... Nf6 {[%clk 0:03:00]} 5. Nc3 {[%clk
0:02:58.1]} 5... d6 {[%clk 0:02:59.5]} 6. Bg5 {[%clk 0:02:56.7]} 6... e6 {[%clk
0:02:59.2]} 7. Qd2 {[%clk 0:02:55.9]} 7... Be7 {[%clk 0:02:58.6]} 8. O-O-O
{[%clk 0:02:54.3]} 8... a6 {[%clk 0:02:57.7]} 9. f3 {[%clk 0:02:50.2]} 9... Bd7
{[%clk 0:02:56.8]} 10. h4 {[%clk 0:02:50]} 10... Qc7 {[%clk 0:02:52.6]} 11. Kb1
{[%clk 0:02:49.7]} 11... b5 {[%clk 0:02:50.2]} 12. Nxc6 {[%clk 0:02:47.2]} 12...
Bxc6 {[%clk 0:02:48.1]} 13. Ne2 {[%clk 0:02:47.5]} 13... h6 {[%clk 0:02:42]} 14.
Be3 {[%clk 0:02:46.3]} 14... e5 {[%clk 0:02:40.5]} 15. Ng3 {[%clk 0:02:33.3]}
15... Bd7 {[%clk 0:02:27.9]} 16. Nf5 {[%clk 0:02:21.8]} 16... Bxf5 {[%clk
0:02:27.2]} 17. exf5 {[%clk 0:02:22.7]} 17... d5 {[%clk 0:02:26.4]} 18. g4
{[%clk 0:02:22.7]} 18... d4 {[%clk 0:02:25.9]} 19. Bf2 {[%clk 0:02:21.1]} 19...
Rc8 {[%clk 0:02:20.5]} 20. Bd3 {[%clk 0:02:19.1]} 20... Nd5 {[%clk 0:02:17.5]}
21. g5 {[%clk 0:02:02.9]} 21... Nf4 {[%clk 0:01:58.3]} 22. f6 {[%clk 0:01:51]}
22... gxf6 {[%clk 0:01:57.4]} 23. Bf5 {[%clk 0:01:42.9]} 23... Rd8 {[%clk
0:01:49.2]} 24. gxf6 {[%clk 0:01:40.9]} 24... Bxf6 {[%clk 0:01:48.7]} 25. Bg3
{[%clk 0:01:36.1]} 25... O-O {[%clk 0:01:34.2]} 26. Bxf4 {[%clk 0:01:29.8]}
26... exf4 {[%clk 0:01:35.1]} 27. Qd3 {[%clk 0:01:24.8]} 27... Kh8 {[%clk
0:01:33.3]} 28. h5 {[%clk 0:01:10.4]} 28... Rde8 {[%clk 0:01:32.9]} 29. Be4
{[%clk 0:01:08.4]} 29... Rg8 {[%clk 0:01:32.5]} 30. Rhg1 {[%clk 0:01:08.2]}
30... Rg3 {[%clk 0:01:31.9]} 31. Bd5 {[%clk 0:00:49]} 31... Qd7 {[%clk
0:01:09.4]} 32. Be4 {[%clk 0:00:33]} 32... Reg8 {[%clk 0:01:08.8]} 33. Rge1
{[%clk 0:00:32.6]} 33... Qd6 {[%clk 0:00:55]} 34. a3 {[%clk 0:00:26.7]} 34...
Rg2 {[%clk 0:00:51.8]} 35. Bh7 {[%clk 0:00:25.4]} 35... Rc8 {[%clk 0:00:48.3]}
36. Bf5 {[%clk 0:00:22.7]} 36... Rb8 {[%clk 0:00:42.1]} 37. Re2 {[%clk
0:00:15.7]} 37... Rxe2 {[%clk 0:00:38.8]} 38. Qxe2 {[%clk 0:00:16.6]} 38... b4
{[%clk 0:00:39.3]} 39. axb4 {[%clk 0:00:16.6]} 39... Qxb4 {[%clk 0:00:38.6]} 40.
Qd3 {[%clk 0:00:17.5]} 40... Qxb2# {[%clk 0:00:38.2]} 0-1

[Event "*** Titled Tuesday Blitz"]
[Site "Chess.com"]
[Date "2020.04.07"]
[Round "1"]
[White "Zq1"]
[Black "ferdipy"]
[Result "1-0"]
[WhiteElo "2541"]
[BlackElo "2157"]
[TimeControl "180+1"]
[EndTime "13:07:01 PDT"]
[Termination "Zq1 won by resignation"]

1. d4 {[%clk 0:02:58.9]} 1... Nf6 {[%clk 0:02:57.4]} 2. c4 {[%clk 0:02:58.3]}
2... e6 {[%clk 0:02:56.1]} 3. g3 {[%clk 0:02:57.7]} 3... d5 {[%clk 0:02:52.8]}
4. Bg2 {[%clk 0:02:57.1]} 4... Be7 {[%clk 0:02:51.6]} 5. Nf3 {[%clk 0:02:56.9]}
5... O-O {[%clk 0:02:47.1]} 6. Nc3 {[%clk 0:02:50.5]} 6... c6 {[%clk 0:02:43.3]}
7. O-O {[%clk 0:02:47.2]} 7... b6 {[%clk 0:02:36.4]} 8. Ne5 {[%clk 0:02:37]}
8... Bb7 {[%clk 0:02:35.3]} 9. b3 {[%clk 0:02:32.8]} 9... Na6 {[%clk 0:02:31]}
10. e4 {[%clk 0:02:30.8]} 10... Rc8 {[%clk 0:02:07.4]} 11. Bg5 {[%clk 0:02:24]}
11... dxe4 {[%clk 0:02:02.1]} 12. Nxe4 {[%clk 0:02:03.9]} 12... Nxe4 {[%clk
0:02:00.6]} 13. Bxe7 {[%clk 0:02:03]} 13... Qxe7 {[%clk 0:02:01.5]} 14. Bxe4
{[%clk 0:02:01.8]} 14... c5 {[%clk 0:02:01.5]} 15. Bxb7 {[%clk 0:01:52.9]} 15...
Qxb7 {[%clk 0:01:55.9]} 16. Qf3 {[%clk 0:01:53.4]} 16... Qxf3 {[%clk 0:01:46.7]}
17. Nxf3 {[%clk 0:01:52.9]} 17... f6 {[%clk 0:01:40.4]} 18. Rfd1 {[%clk
0:01:47.6]} 18... Rfd8 {[%clk 0:01:37.1]} 19. Kf1 {[%clk 0:01:45.2]} 19... Kf7
{[%clk 0:01:31.7]} 20. Ke2 {[%clk 0:01:44.5]} 20... g5 {[%clk 0:01:16.1]} 21. h3
{[%clk 0:01:39.7]} 21... h5 {[%clk 0:01:15.6]} 22. g4 {[%clk 0:01:39.2]} 22...
h4 {[%clk 0:00:46.8]} 23. Rd2 {[%clk 0:01:33]} 23... Rd7 {[%clk 0:00:47]} 24.
Rad1 {[%clk 0:01:24.6]} 24... Rcd8 {[%clk 0:00:47.4]} 25. dxc5 {[%clk
0:01:18.9]} 25... Nxc5 {[%clk 0:00:46.7]} 26. Rxd7+ {[%clk 0:01:17.7]} 26...
Rxd7 {[%clk 0:00:47.6]} 27. Rxd7+ {[%clk 0:01:16.3]} 27... Nxd7 {[%clk
0:00:48.5]} 28. Nd4 {[%clk 0:01:16.2]} 28... Nc5 {[%clk 0:00:38.9]} 29. Ke3
{[%clk 0:01:15.1]} 29... e5 {[%clk 0:00:36.2]} 30. Nb5 {[%clk 0:01:04.9]} 30...
a5 {[%clk 0:00:35.7]} 31. Nd6+ {[%clk 0:01:03.1]} 31... Ke6 {[%clk 0:00:36]} 32.
Nc8 {[%clk 0:01:00.6]} 32... Nd7 {[%clk 0:00:35.4]} 33. f3 {[%clk 0:00:54.8]}
33... Kf7 {[%clk 0:00:29.9]} 34. a3 {[%clk 0:00:52.9]} 34... Ke6 {[%clk
0:00:30.2]} 35. b4 {[%clk 0:00:51.8]} 35... axb4 {[%clk 0:00:29.8]} 36. axb4
{[%clk 0:00:51.9]} 36... Kf7 {[%clk 0:00:26]} 37. Kd3 {[%clk 0:00:51.9]} 37...
Ke6 {[%clk 0:00:26]} 38. Ke4 {[%clk 0:00:52]} 38... b5 {[%clk 0:00:13.9]} 39.
cxb5 {[%clk 0:00:48.1]} 39... Nf8 {[%clk 0:00:14]} 40. Nb6 {[%clk 0:00:42.9]}
40... Kd6 {[%clk 0:00:13.5]} 41. Nc4+ {[%clk 0:00:42.1]} 41... Kc7 {[%clk
0:00:12.5]} 42. Kd5 {[%clk 0:00:39.4]} 42... Kb7 {[%clk 0:00:11.8]} 43. Kd6
{[%clk 0:00:36.9]} 1-0

[Event "*** Titled Tuesday Blitz"]
[Site "Chess.com"]
[Date "2020.04.07"]
[Round "1"]
[White "Willychess95"]
[Black "DerKnipser"]
[Result "0-1"]
[WhiteElo "2608"]
[BlackElo "2306"]
[TimeControl "180+1"]
[EndTime "13:07:03 PDT"]
[Termination "DerKnipser won on time"]

1. e4 {[%clk 0:03:00.3]} 1... c5 {[%clk 0:02:59.6]} 2. Nf3 {[%clk 0:03:00.1]}
2... d6 {[%clk 0:02:59.9]} 3. d4 {[%clk 0:03:00.4]} 3... cxd4 {[%clk 0:03:00.7]}
4. Nxd4 {[%clk 0:03:01.3]} 4... Nf6 {[%clk 0:03:01.5]} 5. Nc3 {[%clk 0:03:01.6]}
5... g6 {[%clk 0:03:01.3]} 6. Be3 {[%clk 0:03:00.2]} 6... Bg7 {[%clk 0:03:01.1]}
7. Bc4 {[%clk 0:03:00.5]} 7... O-O {[%clk 0:03:00.9]} 8. f3 {[%clk 0:03:00.6]}
8... Nc6 {[%clk 0:03:01.1]} 9. h4 {[%clk 0:03:00.3]} 9... Bd7 {[%clk 0:03:00.5]}
10. Qd2 {[%clk 0:02:58.5]} 10... Ne5 {[%clk 0:03:00.4]} 11. Bb3 {[%clk
0:02:58.2]} 11... Qa5 {[%clk 0:03:00.6]} 12. O-O-O {[%clk 0:02:56.4]} 12... Rfc8
{[%clk 0:03:00.4]} 13. Kb1 {[%clk 0:02:55.7]} 13... Nc4 {[%clk 0:03:00]} 14.
Bxc4 {[%clk 0:02:55.2]} 14... Rxc4 {[%clk 0:03:00.9]} 15. Nb3 {[%clk 0:02:52]}
15... Qa6 {[%clk 0:03:00.6]} 16. h5 {[%clk 0:02:50.6]} 16... Rac8 {[%clk
0:02:53.1]} 17. hxg6 {[%clk 0:02:44.4]} 17... fxg6 {[%clk 0:02:51.6]} 18. Bd4
{[%clk 0:02:15.3]} 18... Be6 {[%clk 0:02:19.2]} 19. g4 {[%clk 0:02:03.7]} 19...
b5 {[%clk 0:02:12.6]} 20. g5 {[%clk 0:01:27.2]} 20... Nh5 {[%clk 0:02:09]} 21.
Bxg7 {[%clk 0:01:24.5]} 21... Kxg7 {[%clk 0:02:09.9]} 22. Nd4 {[%clk 0:01:19.2]}
22... Bf7 {[%clk 0:01:49.8]} 23. Rxh5 {[%clk 0:00:38.7]} 23... gxh5 {[%clk
0:01:49.4]} 24. Nf5+ {[%clk 0:00:34.9]} 24... Kf8 {[%clk 0:01:27.1]} 25. g6
{[%clk 0:00:33.3]} 25... hxg6 {[%clk 0:01:10]} 26. Qh6+ {[%clk 0:00:14.3]} 26...
Ke8 {[%clk 0:01:10.5]} 27. Ne3 {[%clk 0:00:11]} 27... Rxc3 {[%clk 0:01:09.6]}
28. bxc3 {[%clk 0:00:11]} 28... Qxa2+ {[%clk 0:01:08.8]} 29. Kc1 {[%clk
0:00:10.8]} 29... Rxc3 {[%clk 0:01:09]} 30. Qh8+ {[%clk 0:00:06.6]} 30... Kd7
{[%clk 0:01:09.4]} 31. Qxc3 {[%clk 0:00:05.9]} 31... a5 {[%clk 0:01:06.8]} 32.
Qb2 {[%clk 0:00:05.5]} 32... Qa4 {[%clk 0:01:06.1]} 33. Nd5 {[%clk 0:00:05.1]}
33... Bxd5 {[%clk 0:01:05.7]} 34. Rxd5 {[%clk 0:00:04.9]} 34... b4 {[%clk
0:01:05]} 35. Rd3 {[%clk 0:00:04.7]} 35... h4 {[%clk 0:01:04.2]} 36. Kb1 {[%clk
0:00:04.1]} 36... h3 {[%clk 0:01:04.5]} 37. Qc1 {[%clk 0:00:04.6]} 37... Qb5
{[%clk 0:01:02.2]} 38. Qh1 {[%clk 0:00:03.3]} 38... a4 {[%clk 0:01:00.7]} 0-1

[Event "*** Titled Tuesday Blitz"]
[Site "Chess.com"]
[Date "2020.04.07"]
[Round "1"]
[White "Arman_Hakemi"]
[Black "Blagorod"]
[Result "1-0"]
[WhiteElo "2530"]
[BlackElo "2125"]
[TimeControl "180+1"]
[EndTime "13:07:04 PDT"]
[Termination "Arman_Hakemi won on time"]

1. Nf3 {[%clk 0:03:00.9]} 1... Nc6 {[%clk 0:02:58.7]} 2. d4 {[%clk 0:03:00.5]}
2... d5 {[%clk 0:02:58.9]} 3. Bf4 {[%clk 0:03:00.2]} 3... Bf5 {[%clk 0:02:52.4]}
4. e3 {[%clk 0:02:59.9]} 4... e6 {[%clk 0:02:52.3]} 5. Bd3 {[%clk 0:02:57.8]}
5... Bxd3 {[%clk 0:02:49]} 6. Qxd3 {[%clk 0:02:58.7]} 6... Bd6 {[%clk
0:02:47.2]} 7. Bg3 {[%clk 0:02:55.4]} 7... Nge7 {[%clk 0:02:42.8]} 8. Nbd2
{[%clk 0:02:51.8]} 8... Nf5 {[%clk 0:02:28.1]} 9. Bxd6 {[%clk 0:02:49.7]} 9...
cxd6 {[%clk 0:02:25.8]} 10. O-O {[%clk 0:02:50.6]} 10... O-O {[%clk 0:02:22]}
11. b3 {[%clk 0:02:44.3]} 11... Rc8 {[%clk 0:02:19.9]} 12. c4 {[%clk 0:02:44.3]}
12... dxc4 {[%clk 0:02:18.7]} 13. bxc4 {[%clk 0:02:45.2]} 13... b6 {[%clk
0:02:06.2]} 14. Rab1 {[%clk 0:02:41.8]} 14... Nfe7 {[%clk 0:01:49.2]} 15. Rfc1
{[%clk 0:02:39.3]} 15... d5 {[%clk 0:01:44.2]} 16. cxd5 {[%clk 0:02:28.8]} 16...
Nxd5 {[%clk 0:01:42.9]} 17. Nc4 {[%clk 0:02:23.4]} 17... Qe7 {[%clk 0:01:26]}
18. Nce5 {[%clk 0:02:20.8]} 18... Nxe5 {[%clk 0:01:23.2]} 19. Nxe5 {[%clk
0:02:21.7]} 19... Rxc1+ {[%clk 0:00:52.8]} 20. Rxc1 {[%clk 0:02:20]} 20... Qb4
{[%clk 0:00:52.4]} 21. h3 {[%clk 0:01:59.8]} 21... Qb2 {[%clk 0:00:38.8]} 22.
Rc2 {[%clk 0:01:57.4]} 22... Qb1+ {[%clk 0:00:36.5]} 23. Kh2 {[%clk 0:01:56.4]}
23... Nb4 {[%clk 0:00:36.7]} 24. Qb5 {[%clk 0:01:44.2]} 24... Qxc2 {[%clk
0:00:33.1]} 25. Qxb4 {[%clk 0:01:44.5]} 25... Qxa2 {[%clk 0:00:32.5]} 26. Kg3
{[%clk 0:01:24.3]} 26... Qd5 {[%clk 0:00:29.2]} 27. Qe7 {[%clk 0:01:21.1]} 27...
Qd8 {[%clk 0:00:19.8]} 28. Qxa7 {[%clk 0:01:20]} 28... Qg5+ {[%clk 0:00:17.1]}
29. Kh2 {[%clk 0:01:20]} 29... b5 {[%clk 0:00:15.3]} 30. Qb7 {[%clk 0:01:17.5]}
30... Qf5 {[%clk 0:00:09]} 31. Nc6 {[%clk 0:01:12.5]} 31... Qxf2 {[%clk
0:00:07.1]} 32. Ne7+ {[%clk 0:01:05.6]} 32... Kh8 {[%clk 0:00:06.8]} 33. Qxb5
{[%clk 0:01:06.5]} 33... Qxe3 {[%clk 0:00:06.3]} 34. Qc5 {[%clk 0:01:06.6]}
34... Qf4+ {[%clk 0:00:06]} 35. Kg1 {[%clk 0:01:06.3]} 35... Qe3+ {[%clk
0:00:05.2]} 36. Kf1 {[%clk 0:01:05.5]} 36... Qf4+ {[%clk 0:00:03.8]} 37. Ke2
{[%clk 0:01:05.7]} 37... Qe4+ {[%clk 0:00:03.2]} 38. Kf2 {[%clk 0:01:06.1]}
38... Qf4+ {[%clk 0:00:03.2]} 39. Ke2 {[%clk 0:01:06.5]} 39... Qe4+ {[%clk
0:00:02.9]} 40. Kd2 {[%clk 0:01:06.7]} 40... Qxg2+ {[%clk 0:00:01.8]} 41. Kc3
{[%clk 0:01:07.6]} 41... Qxh3+ {[%clk 0:00:02]} 42. Kb4 {[%clk 0:01:08.5]} 42...
Qf1 {[%clk 0:00:01.5]} 43. Ng6+ {[%clk 0:01:07.8]} 1-0

[Event "*** Titled Tuesday Blitz"]
[Site "Chess.com"]
[Date "2020.04.07"]
[Round "1"]
[White "Evhen_Taranenko"]
[Black "1977Ivan"]
[Result "0-1"]
[WhiteElo "2376"]
[BlackElo "2728"]
[TimeControl "180+1"]
[EndTime "13:07:05 PDT"]
[Termination "1977Ivan won on time"]

1. d4 {[%clk 0:02:55.5]} 1... Nf6 {[%clk 0:02:58.6]} 2. c4 {[%clk 0:02:55.4]}
2... d6 {[%clk 0:02:58.6]} 3. Nc3 {[%clk 0:02:54.6]} 3... e5 {[%clk 0:02:52.4]}
4. e3 {[%clk 0:02:53.1]} 4... Qe7 {[%clk 0:02:50.9]} 5. Nf3 {[%clk 0:02:51.2]}
5... g6 {[%clk 0:02:51.3]} 6. Be2 {[%clk 0:02:47.2]} 6... Bg7 {[%clk 0:02:51.2]}
7. O-O {[%clk 0:02:46]} 7... O-O {[%clk 0:02:51.2]} 8. b3 {[%clk 0:02:28.3]}
8... e4 {[%clk 0:02:43.6]} 9. Nd2 {[%clk 0:02:24.6]} 9... Re8 {[%clk 0:02:43.7]}
10. Qc2 {[%clk 0:02:19.3]} 10... c5 {[%clk 0:02:29.3]} 11. d5 {[%clk 0:02:07.8]}
11... h5 {[%clk 0:02:25.4]} 12. Bb2 {[%clk 0:02:06.1]} 12... Nbd7 {[%clk
0:02:22.3]} 13. a4 {[%clk 0:01:53.3]} 13... Nf8 {[%clk 0:02:20.6]} 14. a5 {[%clk
0:01:49.7]} 14... N8h7 {[%clk 0:02:17.3]} 15. a6 {[%clk 0:01:46.6]} 15... bxa6
{[%clk 0:02:11.7]} 16. Ra5 {[%clk 0:01:35.2]} 16... Rb8 {[%clk 0:02:05.4]} 17.
Rfa1 {[%clk 0:01:33]} 17... h4 {[%clk 0:02:01.3]} 18. h3 {[%clk 0:00:59.6]}
18... Ng5 {[%clk 0:01:59]} 19. Nd1 {[%clk 0:00:44.4]} 19... Rb6 {[%clk
0:01:55.1]} 20. R1a4 {[%clk 0:00:15.6]} 20... Nd7 {[%clk 0:01:12.8]} 21. Bxg7
{[%clk 0:00:14]} 21... Kxg7 {[%clk 0:01:12.9]} 22. Qc3+ {[%clk 0:00:13.4]} 22...
Qf6 {[%clk 0:01:09.5]} 23. Qxf6+ {[%clk 0:00:12.1]} 23... Kxf6 {[%clk
0:01:08.8]} 24. Nc3 {[%clk 0:00:11.5]} 24... Bb7 {[%clk 0:01:05.5]} 25. Na2
{[%clk 0:00:11]} 25... Rb8 {[%clk 0:01:02.5]} 26. b4 {[%clk 0:00:09]} 26... cxb4
{[%clk 0:01:01.4]} 27. Rxb4 {[%clk 0:00:07]} 27... Nc5 {[%clk 0:00:58]} 28. Rxb6
{[%clk 0:00:05.2]} 28... axb6 {[%clk 0:00:57.7]} 29. Ra3 {[%clk 0:00:02.5]}
29... Bc8 {[%clk 0:00:53.5]} 30. Rc3 {[%clk 0:00:02.7]} 30... Ke5 {[%clk
0:00:52.1]} 31. Nb4 {[%clk 0:00:02.7]} 31... Bd7 {[%clk 0:00:50.1]} 32. Nc6+
{[%clk 0:00:01.1]} 32... Bxc6 {[%clk 0:00:49.7]} 33. dxc6 {[%clk 0:00:01.7]}
33... Rc8 {[%clk 0:00:49.4]} 34. Ra3 {[%clk 0:00:01.1]} 34... Rxc6 {[%clk
0:00:48.7]} 35. Nb3 {[%clk 0:00:01.2]} 35... Nge6 {[%clk 0:00:48.2]} 0-1

[Event "*** Titled Tuesday Blitz"]
[Site "Chess.com"]
[Date "2020.04.07"]
[Round "1"]
[White "stoleriu"]
[Black "imdarealist"]
[Result "1-0"]
[WhiteElo "2570"]
[BlackElo "2211"]
[TimeControl "180+1"]
[EndTime "13:07:10 PDT"]
[Termination "stoleriu won by resignation"]

1. e4 {[%clk 0:02:59.8]} 1... e5 {[%clk 0:02:59]} 2. Nf3 {[%clk 0:02:59]} 2...
Nf6 {[%clk 0:02:59.3]} 3. Nxe5 {[%clk 0:02:57.5]} 3... d6 {[%clk 0:02:59]} 4.
Nf3 {[%clk 0:02:57.1]} 4... Nxe4 {[%clk 0:02:59.4]} 5. c4 {[%clk 0:02:57.5]}
5... c6 {[%clk 0:02:41.8]} 6. Nc3 {[%clk 0:02:54.4]} 6... Nf6 {[%clk 0:02:40.3]}
7. d4 {[%clk 0:02:50.5]} 7... d5 {[%clk 0:02:38.7]} 8. Bg5 {[%clk 0:02:48.6]}
8... dxc4 {[%clk 0:02:21.5]} 9. Bxc4 {[%clk 0:02:37.9]} 9... Be7 {[%clk
0:02:21.3]} 10. O-O {[%clk 0:02:34.9]} 10... O-O {[%clk 0:02:15.7]} 11. Re1
{[%clk 0:02:29.2]} 11... Nbd7 {[%clk 0:02:02.2]} 12. Bb3 {[%clk 0:02:22.3]}
12... Nb6 {[%clk 0:01:58.2]} 13. Ne5 {[%clk 0:02:17.1]} 13... Nfd5 {[%clk
0:01:34.6]} 14. Bxe7 {[%clk 0:02:13.5]} 14... Nxe7 {[%clk 0:01:30.4]} 15. Nxf7
{[%clk 0:01:16.9]} 15... Rxf7 {[%clk 0:01:28.9]} 16. Bxf7+ {[%clk 0:01:17.8]}
16... Kxf7 {[%clk 0:01:29.8]} 17. Qh5+ {[%clk 0:01:18.1]} 17... Kg8 {[%clk
0:01:17.3]} 18. Qg5 {[%clk 0:01:13]} 18... Bf5 {[%clk 0:00:29.3]} 19. Rxe7
{[%clk 0:01:09.3]} 19... Bg6 {[%clk 0:00:29]} 20. Rae1 {[%clk 0:01:05.9]} 20...
Qxd4 {[%clk 0:00:20.3]} 21. Rxb7 {[%clk 0:01:01.9]} 21... Rf8 {[%clk 0:00:19.4]}
22. Qe3 {[%clk 0:00:58.8]} 22... Qxe3 {[%clk 0:00:11.7]} 23. Rxe3 {[%clk
0:00:57.3]} 23... Nc4 {[%clk 0:00:11.1]} 24. Ree7 {[%clk 0:00:52.6]} 24... Bf7
{[%clk 0:00:09.9]} 25. Rxa7 {[%clk 0:00:50.7]} 25... Re8 {[%clk 0:00:09.8]} 26.
Rxe8+ {[%clk 0:00:48.9]} 26... Bxe8 {[%clk 0:00:10.7]} 27. Rb7 {[%clk
0:00:46.3]} 27... Nd6 {[%clk 0:00:09.3]} 28. Rb8 {[%clk 0:00:44.9]} 28... Kf7
{[%clk 0:00:09.5]} 29. a4 {[%clk 0:00:45.1]} 29... Ke6 {[%clk 0:00:09.5]} 30. a5
{[%clk 0:00:43.6]} 30... Bd7 {[%clk 0:00:10.4]} 31. a6 {[%clk 0:00:41.1]} 31...
Nc8 {[%clk 0:00:11]} 32. Rb7 {[%clk 0:00:33.7]} 32... c5 {[%clk 0:00:11.5]} 33.
a7 {[%clk 0:00:32.4]} 33... Bc6 {[%clk 0:00:11.5]} 34. a8=Q {[%clk 0:00:31.2]}
1-0

[Event "*** Titled Tuesday Blitz"]
[Site "Chess.com"]
[Date "2020.04.07"]
[Round "1"]
[White "vovachesss"]
[Black "arctic_t00"]
[Result "0-1"]
[WhiteElo "2666"]
[BlackElo "2373"]
[TimeControl "180+1"]
[EndTime "13:07:11 PDT"]
[Termination "arctic_t00 won by resignation"]

1. e4 {[%clk 0:02:57.9]} 1... e6 {[%clk 0:02:56.5]} 2. Qe2 {[%clk 0:02:57.6]}
2... c5 {[%clk 0:02:55.9]} 3. Nf3 {[%clk 0:02:57.7]} 3... Nc6 {[%clk 0:02:56.1]}
4. g3 {[%clk 0:02:58.1]} 4... d6 {[%clk 0:02:56.2]} 5. Bg2 {[%clk 0:02:58.5]}
5... Nf6 {[%clk 0:02:56.4]} 6. O-O {[%clk 0:02:59]} 6... Be7 {[%clk 0:02:56.5]}
7. c3 {[%clk 0:02:59.7]} 7... O-O {[%clk 0:02:56.9]} 8. d4 {[%clk 0:03:00.4]}
8... cxd4 {[%clk 0:02:57.1]} 9. cxd4 {[%clk 0:03:01]} 9... d5 {[%clk 0:02:57]}
10. e5 {[%clk 0:03:01.2]} 10... Ne4 {[%clk 0:02:57.1]} 11. Nbd2 {[%clk
0:03:01.1]} 11... Nxd2 {[%clk 0:02:49.1]} 12. Bxd2 {[%clk 0:03:02]} 12... Qb6
{[%clk 0:02:47]} 13. Be3 {[%clk 0:02:56.8]} 13... Bd7 {[%clk 0:02:46.1]} 14.
Rad1 {[%clk 0:02:51.3]} 14... Rfc8 {[%clk 0:02:43.5]} 15. h4 {[%clk 0:02:50.7]}
15... Nb4 {[%clk 0:02:40.2]} 16. a3 {[%clk 0:02:48.1]} 16... Bb5 {[%clk
0:02:38.3]} 17. Qe1 {[%clk 0:02:28.4]} 17... Nc2 {[%clk 0:02:26.9]} 18. Qd2
{[%clk 0:02:25.9]} 18... Bxf1 {[%clk 0:02:25.5]} 19. Bxf1 {[%clk 0:02:23.8]}
19... Qxb2 {[%clk 0:02:13.4]} 20. Bg5 {[%clk 0:02:08.9]} 20... Bxa3 {[%clk
0:02:01.6]} 21. Bd3 {[%clk 0:02:02.7]} 21... Nb4 {[%clk 0:01:31.8]} 22. Qf4
{[%clk 0:01:59.7]} 22... Nxd3 {[%clk 0:01:27.3]} 23. Rxd3 {[%clk 0:01:55.2]}
23... Qc1+ {[%clk 0:01:21.1]} 24. Kg2 {[%clk 0:01:48.5]} 24... Qxf4 {[%clk
0:01:20]} 25. Bxf4 {[%clk 0:01:49.4]} 25... Bb4 {[%clk 0:01:15.4]} 26. Rb3
{[%clk 0:01:48.7]} 26... a5 {[%clk 0:01:15.2]} 27. h5 {[%clk 0:01:48.1]} 27...
h6 {[%clk 0:01:13.9]} 28. g4 {[%clk 0:01:47.8]} 28... Rc3 {[%clk 0:01:11.7]} 29.
Rb1 {[%clk 0:01:48.2]} 29... Rc4 {[%clk 0:00:56.3]} 30. g5 {[%clk 0:01:46.1]}
30... hxg5 {[%clk 0:00:55.5]} 31. Bxg5 {[%clk 0:01:45.6]} 31... a4 {[%clk
0:00:54.6]} 32. h6 {[%clk 0:01:46.3]} 32... gxh6 {[%clk 0:00:46.8]} 33. Bf6
{[%clk 0:01:30.1]} 33... a3 {[%clk 0:00:40.2]} 34. Rh1 {[%clk 0:01:23.7]} 34...
Bf8 {[%clk 0:00:39.8]} 35. Rh4 {[%clk 0:01:04.2]} 35... a2 {[%clk 0:00:36.7]}
36. Rg4+ {[%clk 0:01:04.1]} 36... Kh7 {[%clk 0:00:36.9]} 37. Rh4 {[%clk
0:00:34]} 37... a1=Q {[%clk 0:00:34.8]} 38. Ng5+ {[%clk 0:00:34.3]} 38... Kg6
{[%clk 0:00:34.7]} 39. Nh3 {[%clk 0:00:33.4]} 39... Rxd4 {[%clk 0:00:28.4]} 40.
Nf4+ {[%clk 0:00:33]} 40... Rxf4 {[%clk 0:00:28.2]} 41. Rxf4 {[%clk 0:00:33.9]}
41... Ra4 {[%clk 0:00:26.8]} 42. Rf3 {[%clk 0:00:33.7]} 42... Rg4+ {[%clk
0:00:25.8]} 43. Kh3 {[%clk 0:00:34.2]} 43... h5 {[%clk 0:00:25.7]} 0-1

[Event "*** Titled Tuesday Blitz"]
[Site "Chess.com"]
[Date "2020.04.07"]
[Round "1"]
[White "VincentKeymer"]
[Black "MFBerna"]
[Result "1-0"]
[WhiteElo "2639"]
[BlackElo "2307"]
[TimeControl "180+1"]
[EndTime "13:07:11 PDT"]
[Termination "VincentKeymer won by checkmate"]

1. Nf3 {[%clk 0:02:59.8]} 1... Nf6 {[%clk 0:02:59.1]} 2. c4 {[%clk 0:02:58.3]}
2... e6 {[%clk 0:02:57.9]} 3. Nc3 {[%clk 0:02:54.3]} 3... d5 {[%clk 0:02:58.8]}
4. e3 {[%clk 0:02:50.6]} 4... Be7 {[%clk 0:02:57.5]} 5. b3 {[%clk 0:02:48.5]}
5... O-O {[%clk 0:02:57]} 6. Bb2 {[%clk 0:02:47.4]} 6... c5 {[%clk 0:02:56.6]}
7. cxd5 {[%clk 0:02:46.6]} 7... exd5 {[%clk 0:02:55.5]} 8. d4 {[%clk 0:02:46.1]}
8... Nc6 {[%clk 0:02:55.9]} 9. Be2 {[%clk 0:02:45.8]} 9... Re8 {[%clk
0:02:54.3]} 10. O-O {[%clk 0:02:44.7]} 10... cxd4 {[%clk 0:02:50.3]} 11. Nxd4
{[%clk 0:02:42]} 11... Ne5 {[%clk 0:02:40.6]} 12. h3 {[%clk 0:02:39.1]} 12... a6
{[%clk 0:02:33.6]} 13. Rc1 {[%clk 0:02:37.4]} 13... Ng6 {[%clk 0:02:19.5]} 14.
Bd3 {[%clk 0:02:31.2]} 14... Bd6 {[%clk 0:02:16.4]} 15. Nce2 {[%clk 0:02:17.6]}
15... Ne4 {[%clk 0:02:11.7]} 16. Bxe4 {[%clk 0:01:58.5]} 16... dxe4 {[%clk
0:02:11]} 17. Nc3 {[%clk 0:01:57.4]} 17... Nh4 {[%clk 0:01:33.6]} 18. Qh5 {[%clk
0:01:45.1]} 18... g6 {[%clk 0:01:20.3]} 19. Qe2 {[%clk 0:00:47.8]} 19... Qg5
{[%clk 0:00:29.4]} 20. f4 {[%clk 0:00:44.8]} 20... exf3 {[%clk 0:00:25.6]} 21.
Nxf3 {[%clk 0:00:43.8]} 21... Qg3 {[%clk 0:00:15.2]} 22. Nd5 {[%clk 0:00:19.1]}
22... Bxh3 {[%clk 0:00:12.2]} 23. Nf6+ {[%clk 0:00:18.8]} 23... Kf8 {[%clk
0:00:11.1]} 24. Nxh7+ {[%clk 0:00:19]} 24... Kg8 {[%clk 0:00:09.9]} 25. Nf6+
{[%clk 0:00:19.2]} 25... Kf8 {[%clk 0:00:10.4]} 26. Nh7+ {[%clk 0:00:15.7]}
26... Kg8 {[%clk 0:00:10.7]} 27. Rc4 {[%clk 0:00:13.5]} 27... Nxg2 {[%clk
0:00:07.3]} 28. Nf6+ {[%clk 0:00:13]} 28... Kf8 {[%clk 0:00:06.8]} 29. Qf2
{[%clk 0:00:13.4]} 29... Qxf2+ {[%clk 0:00:05.8]} 30. Kxf2 {[%clk 0:00:12.9]}
30... Re6 {[%clk 0:00:04.4]} 31. Rh1 {[%clk 0:00:12.8]} 31... Bf5 {[%clk
0:00:03.5]} 32. Rh8+ {[%clk 0:00:12.5]} 32... Ke7 {[%clk 0:00:04.4]} 33. Rxa8
{[%clk 0:00:12.6]} 33... Nxe3 {[%clk 0:00:04.5]} 34. Re8# {[%clk 0:00:12.7]} 1-0